bitfinex/quotes_BTCUSD_20260101
["timestamp","ask_amount","ask_price","bid_price","bid_amount"]
[1767273431496,0.01066247,88030.0,88024.0,0.01136053]
[1767273431701,0.01066247,88029.0,88024.0,0.01136053]
[1767273432075,0.01136,88034.0,88024.0,0.01136053]
[1767273432239,0.01066258,88030.0,88025.0,0.0113604]
[1767273432449,0.01066258,88029.0,88025.0,0.0113604]
[1767273432674,0.01066258,88028.0,88025.0,0.0113604]
[1767273432894,0.01136,88034.0,88025.0,0.0113604]
[1767273433077,0.01066368,88030.0,88025.0,0.0113604]
[1767273433298,0.01066368,88029.0,88025.0,0.0113604]
[1767273433577,0.01066368,88028.0,88025.0,0.0113604]
[1767273433821,0.04575494,88031.0,88025.0,0.0113604]
[1767273434007,0.01066468,88030.0,88025.0,0.0113604]
[1767273434203,0.01066468,88029.0,88025.0,0.0113604]
[1767273434409,0.01066468,88028.0,88025.0,0.0113604]
[1767273434622,0.04575494,88031.0,88024.0,0.01136053]
[1767273434860,0.01066578,88030.0,88024.0,0.01136053]
[1767273435002,0.01066578,88029.0,88024.0,0.01136053]
[1767273435206,0.01066578,88028.0,88024.0,0.01136053]
[1767273435415,0.01066708,88027.0,88024.0,0.01136053]
[1767273435612,0.04575494,88031.0,88023.0,0.01136066]
[1767273435800,0.01066708,88030.0,88024.0,0.01136053]
[1767273435981,0.01066708,88029.0,88024.0,0.01136053]
[1767273436184,0.01066708,88028.0,88024.0,0.01136053]
[1767273436385,0.01066708,88027.0,88024.0,0.01136053]
[1767273436585,0.04575494,88031.0,88024.0,0.01136053]
[1767273436824,0.01066983,88030.0,88023.0,0.01136066]
[1767273437139,0.04575494,88031.0,88023.0,0.01136066]
[1767273437140,0.01066983,88029.0,88024.0,0.01136053]
[1767273437376,0.01066983,88028.0,88024.0,0.01136053]
[1767273437584,0.01066983,88027.0,88024.0,0.01136053]
[1767273437752,0.04575494,88031.0,88024.0,0.01136053]
[1767273437934,0.01067004,88030.0,88024.0,0.01136053]
[1767273438148,0.04575494,88031.0,88022.0,0.01136079]
[1767273438149,0.01067004,88029.0,88022.0,0.01136079]
[1767273438503,0.01067004,88028.0,88024.0,0.01136053]
[1767273438704,0.01067004,88027.0,88023.0,0.01136066]
[1767273438891,0.04575494,88031.0,88023.0,0.01136066]
[1767273439098,0.01067006,88030.0,88025.0,0.0113604]
[1767273439263,0.01067006,88029.0,88025.0,0.0113604]
[1767273439479,0.01067006,88028.0,88025.0,0.0113604]
[1767273439664,0.01067006,88027.0,88024.0,0.01130373]
[1767273439992,0.04575494,88031.0,88025.0,0.0113604]
[1767273440223,0.01067009,88030.0,88024.0,0.01130373]
[1767273440386,0.01067009,88029.0,88024.0,0.01130373]
[1767273440586,0.01067009,88028.0,88024.0,0.01130373]
[1767273440853,0.01067009,88027.0,88023.0,0.01136066]
[1767273440995,0.04575494,88031.0,88024.0,0.01136053]
[1767273441201,0.03525403,88030.0,88024.0,0.01136053]
[1767273441399,0.01067011,88029.0,88024.0,0.01136053]
[1767273441636,0.01067011,88028.0,88024.0,0.01136053]
[1767273441959,0.01067011,88027.0,88024.0,0.01136053]
[1767273442166,0.04575494,88031.0,88024.0,0.01136053]
[1767273442441,0.035254,88030.0,88024.0,0.01136053]
[1767273442648,0.0106701,88029.0,88024.0,0.01136053]
[1767273442841,0.0106701,88028.0,88025.0,0.0113604]
[1767273443045,0.0106701,88028.0,88024.0,0.01136053]
[1767273443046,0.0106701,88027.0,88024.0,0.01136053]
[1767273443260,0.04575494,88031.0,88024.0,0.01136053]
[1767273443431,0.03525408,88030.0,88024.0,0.01136053]
[1767273443628,0.01067014,88029.0,88024.0,0.01136053]
[1767273443827,0.04575494,88031.0,88023.0,0.01136066]
[1767273443828,0.01067014,88028.0,88023.0,0.01136066]
[1767273444029,0.01067014,88027.0,88024.0,0.01136053]
[1767273444211,0.04575494,88031.0,88024.0,0.01136053]
[1767273444586,0.03525411,88030.0,88023.0,0.01136066]
[1767273444734,0.01067013,88029.0,88024.0,0.01136053]
[1767273444937,0.01067013,88028.0,88024.0,0.01136053]
[1767273445156,0.01067013,88027.0,88024.0,0.01136053]
[1767273445359,0.04575494,88031.0,88024.0,0.01136053]
[1767273445556,0.03525419,88030.0,88024.0,0.01136053]
[1767273445742,0.01067017,88029.0,88024.0,0.01136053]
[1767273445945,0.01067017,88028.0,88025.0,0.0113604]
[1767273446165,0.01067017,88027.0,88024.0,0.01136053]
[1767273446341,0.04575494,88031.0,88025.0,0.0113604]
[1767273446692,0.03525432,88030.0,88025.0,0.0113604]
[1767273446883,0.0106702,88029.0,88025.0,0.0113604]
[1767273447040,0.0106702,88028.0,88025.0,0.0113604]
[1767273447244,0.0106702,88027.0,88024.0,0.01136053]
[1767273447480,0.04575494,88031.0,88024.0,0.01136053]
[1767273447680,0.03525433,88030.0,88024.0,0.01136053]
[1767273447880,0.0106702,88029.0,88024.0,0.01136053]
[1767273448061,0.0106702,88028.0,88024.0,0.01136053]
[1767273448230,0.0106702,88027.0,88024.0,0.01136053]
[1767273448430,0.04575494,88031.0,88024.0,0.01136053]
[1767273448628,0.03525436,88030.0,88024.0,0.01136053]
[1767273448823,0.01067021,88029.0,88024.0,0.01136053]
[1767273449082,0.01067021,88028.0,88024.0,0.01136053]
[1767273449262,0.01067021,88027.0,88024.0,0.01136053]
[1767273449443,0.04575494,88031.0,88024.0,0.01136053]
[1767273449641,0.03525434,88030.0,88026.0,0.01136027]
[1767273449830,0.0106702,88029.0,88025.0,0.0113604]
[1767273450032,0.0106702,88028.0,88025.0,0.0113604]
[1767273450232,0.0106702,88027.0,88025.0,0.0113604]
[1767273450454,0.04575494,88031.0,88025.0,0.0113604]
[1767273450658,0.03525433,88030.0,88025.0,0.0113604]
[1767273450869,0.0106702,88029.0,88025.0,0.0113604]
[1767273451065,0.0106702,88028.0,88025.0,0.0113604]
[1767273451284,0.0106702,88027.0,88025.0,0.0113604]
[1767273451520,0.04575494,88031.0,88025.0,0.0113604]
[1767273451720,0.03525434,88030.0,88025.0,0.0113604]
[1767273451914,0.0106702,88029.0,88025.0,0.0113604]
[1767273452140,0.0106702,88028.0,88025.0,0.0113604]
[1767273452351,0.0106702,88027.0,88025.0,0.0113604]
[1767273452560,0.04575494,88031.0,88025.0,0.0113604]
[1767273452687,0.03525433,88030.0,88025.0,0.0113604]
[1767273452889,0.0106702,88029.0,88025.0,0.0113604]
[1767273453107,0.0106702,88028.0,88025.0,0.0113604]
[1767273453371,0.0106702,88027.0,88024.0,0.01136053]
[1767273453537,0.04575494,88031.0,88025.0,0.0113604]
[1767273453778,0.03525434,88030.0,88024.0,0.01136053]
[1767273453926,0.0106702,88029.0,88024.0,0.01136053]
[1767273454126,0.0106702,88028.0,88024.0,0.01136053]
[1767273454314,0.0106702,88027.0,88024.0,0.01136053]
[1767273454510,0.04575494,88031.0,88024.0,0.01136053]
[1767273454713,0.03525432,88030.0,88025.0,0.0113604]
[1767273454915,0.01067019,88029.0,88025.0,0.0113604]
[1767273455160,0.01067019,88028.0,88025.0,0.0113604]
[1767273455362,0.01067019,88027.0,88025.0,0.0113604]
[1767273455564,0.04575494,88031.0,88025.0,0.0113604]
[1767273455766,0.03525432,88030.0,88025.0,0.0113604]
[1767273455986,0.01067019,88029.0,88025.0,0.0113604]
[1767273456170,0.01067019,88028.0,88025.0,0.0113604]
[1767273456392,0.01067019,88027.0,88025.0,0.0113036]
[1767273456598,0.04575494,88031.0,88025.0,0.0113036]
[1767273456815,0.03525432,88030.0,88025.0,0.0113036]
[1767273457014,0.01067019,88029.0,88025.0,0.0113036]
[1767273457253,0.01067019,88028.0,88025.0,0.0113036]
[1767273457452,0.01067019,88027.0,88025.0,0.0113036]
[1767273457666,0.04575494,88031.0,88025.0,0.0113036]
[1767273457856,0.03525432,88030.0,88025.0,0.0113036]
[1767273458059,0.01067019,88029.0,88025.0,0.0113036]
[1767273458220,0.01067019,88028.0,88025.0,0.0113036]
[1767273458420,0.01067019,88027.0,88025.0,0.0113036]
[1767273458638,0.04575494,88031.0,88025.0,0.0113036]
[1767273458857,0.03525433,88030.0,88026.0,0.01136027]
[1767273459068,0.0106702,88029.0,88025.0,0.0113036]
[1767273459263,0.0106702,88028.0,88025.0,0.0113036]
[1767273459458,0.0106702,88027.0,88025.0,0.0113036]
[1767273459788,0.04575494,88031.0,88025.0,0.0113036]
[1767273459956,0.03525431,88030.0,88026.0,0.01136027]
[1767273460171,0.01067019,88029.0,88025.0,0.0113036]
[1767273460339,0.01067019,88028.0,88026.0,0.01136027]
[1767273460546,0.01067019,88027.0,88025.0,0.0113036]
[1767273460783,0.04575494,88031.0,88026.0,0.01136027]
[1767273460983,0.03525431,88030.0,88026.0,0.01136027]
[1767273461141,0.01067019,88029.0,88026.0,0.01136027]
[1767273461344,0.01067019,88028.0,88026.0,0.01136027]
[1767273461680,0.01067019,88027.0,88026.0,0.01136027]
[1767273461878,0.01067019,88030.0,88026.0,0.01136027]
[1767273462043,0.01067019,88029.0,88026.0,0.01136027]
[1767273462245,0.01067019,88028.0,88025.0,0.0113036]
[1767273462580,0.01067019,88027.0,88026.0,0.01136027]
[1767273463180,0.01067019,88030.0,88026.0,0.01136027]
[1767273463390,0.01067019,88029.0,88026.0,0.01136027]
[1767273463561,0.01067019,88028.0,88027.0,0.01136015]
[1767273463742,0.01067019,88030.0,88027.0,0.01136015]
[1767273463981,0.01067019,88029.0,88026.0,0.01136027]
[1767273464187,0.01067019,88028.0,88026.0,0.01136027]
[1767273464390,0.04575494,88031.0,88027.0,0.01136015]
[1767273464585,0.01067018,88030.0,88026.0,0.01136027]
[1767273464809,0.01067018,88029.0,88026.0,0.01136027]
[1767273465427,0.01067018,88028.0,88027.0,0.01136015]
[1767273465929,0.04575494,88031.0,88026.0,0.01136027]
[1767273466130,0.02458414,88030.0,88026.0,0.01136027]
[1767273466336,0.02458414,88030.0,88027.0,0.01136015]
[1767273466543,0.04575494,88031.0,88017.0,0.01136027]
[1767273466697,0.04701722,88026.0,88016.0,0.01136157]
[1767273466901,0.04701722,88026.0,88015.0,0.01136169]
[1767273466902,0.04701722,88024.0,88015.0,0.01136169]
[1767273467334,0.04701722,88024.0,88013.0,0.01136195]
[1767273467488,0.04701722,88024.0,88016.0,0.01136157]
[1767273467898,0.04701722,88024.0,88016.0,0.01081257]
[1767273468226,0.04701722,88024.0,88016.0,0.01136157]
[1767273468424,0.04701722,88024.0,88014.0,0.01136182]
[1767273468828,0.04701722,88024.0,88010.0,0.40965676]
[1767273468829,0.04701722,88024.0,88010.0,0.4210191]
[1767273469367,0.04701722,88024.0,88012.0,0.01136208]
[1767273469499,0.04701722,88024.0,88011.0,0.01136221]
[1767273469698,0.04701722,88024.0,88012.0,0.01136208]
[1767273470013,0.04701722,88024.0,88011.0,0.01136221]
[1767273470774,0.04701722,88024.0,88012.0,0.01136208]
[1767273470966,0.04701722,88024.0,88011.0,0.01136221]
[1767273471877,0.04701722,88024.0,88011.0,0.06817296]
[1767273472038,0.04701722,88024.0,88013.0,0.01136195]
[1767273472232,0.04701722,88024.0,88012.0,0.01136208]
[1767273472438,0.04701722,88024.0,88013.0,0.01136195]
[1767273474365,0.04701722,88024.0,88011.0,0.01136221]
[1767273474561,0.04701722,88024.0,88012.0,0.01136208]
[1767273476086,0.04701722,88024.0,88013.0,0.01136195]
[1767273479077,0.04701722,88024.0,88014.0,0.01136182]
[1767273479874,0.04701722,88024.0,88012.0,0.01136208]
[1767273480073,0.04701722,88024.0,88013.0,0.01136195]
[1767273480721,0.04701722,88024.0,88012.0,0.01136208]
[1767273481022,0.04701722,88024.0,88013.0,0.01136195]
[1767273481330,0.04701722,88024.0,88014.0,0.01136182]
[1767273481513,0.04701722,88024.0,88015.0,0.01136169]
[1767273481906,0.04701722,88024.0,88014.0,0.01136182]
[1767273483917,0.04701722,88024.0,88012.0,0.01136208]
[1767273488709,0.04701722,88024.0,88013.0,0.01136195]
[1767273491839,0.04701722,88024.0,88011.0,0.07953468]
[1767273492036,0.04701722,88024.0,88012.0,0.01136208]
[1767273492216,0.01066329,88023.0,88011.0,0.02272416]
[1767273492421,0.04701722,88024.0,88011.0,0.02272416]
[1767273492723,0.01066342,88023.0,88011.0,0.02272416]
[1767273493025,0.04701722,88024.0,88011.0,0.02272416]
[1767273493206,0.01066425,88023.0,88011.0,0.02272416]
[1767273493406,0.04701722,88024.0,88011.0,0.02272416]
[1767273493609,0.01066425,88023.0,88011.0,0.02272416]
[1767273493809,0.04701722,88024.0,88011.0,0.02272416]
[1767273494008,0.01066425,88023.0,88011.0,0.02272416]
[1767273494216,0.04701722,88024.0,88012.0,0.01136208]
[1767273494438,0.01066529,88023.0,88012.0,0.01136208]
[1767273494809,0.04701722,88024.0,88012.0,0.01136208]
[1767273495048,0.01066529,88023.0,88012.0,0.01136208]
[1767273495235,0.01066529,88022.0,88012.0,0.01136208]
[1767273495406,0.04701722,88024.0,88012.0,0.01136208]
[1767273495617,0.01066668,88023.0,88012.0,0.01136208]
[1767273495782,0.01066668,88022.0,88013.0,0.01136195]
[1767273495982,0.04701722,88024.0,88013.0,0.01136195]
[1767273496181,0.01066668,88023.0,88013.0,0.01136195]
[1767273496415,0.01066668,88022.0,88013.0,0.01136195]
[1767273496622,0.02458194,88023.0,88013.0,0.01136195]
[1767273496820,0.01066912,88022.0,88013.0,0.01136195]
[1767273497023,0.02458194,88023.0,88013.0,0.01136195]
[1767273497286,0.01066909,88022.0,88013.0,0.01136195]
[1767273497487,0.02458194,88023.0,88013.0,0.01136195]
[1767273497687,0.01066911,88022.0,88013.0,0.01136195]
[1767273497980,0.02458194,88023.0,88013.0,0.01136195]
[1767273498186,0.01066914,88022.0,88013.0,0.01136195]
[1767273498531,0.02458194,88023.0,88013.0,0.01136195]
[1767273498735,0.01066918,88022.0,88012.0,0.01136208]
[1767273498880,0.01066918,88021.0,88013.0,0.01136195]
[1767273499084,0.02458194,88023.0,88013.0,0.01136195]
[1767273499281,0.01066921,88022.0,88012.0,0.01136208]
[1767273499483,0.01066921,88021.0,88012.0,0.01136208]
[1767273499863,0.02458194,88023.0,88012.0,0.01136208]
[1767273500072,0.01066917,88022.0,88012.0,0.01136208]
[1767273500216,0.01066917,88021.0,88012.0,0.01136208]
[1767273500420,0.02458194,88023.0,88012.0,0.01136208]
[1767273500608,0.01066939,88022.0,88012.0,0.01136208]
[1767273500942,0.02458194,88023.0,88012.0,0.01136208]
[1767273500943,0.01066939,88021.0,88012.0,0.01136208]
[1767273501147,0.02458194,88023.0,88012.0,0.01136208]
[1767273501353,0.01066956,88022.0,88012.0,0.01136208]
[1767273501645,0.01066956,88021.0,88012.0,0.01136208]
[1767273501853,0.02458194,88023.0,88012.0,0.01136208]
[1767273502158,0.01066956,88022.0,88012.0,0.01136208]
[1767273502338,0.01066956,88021.0,88012.0,0.01136208]
[1767273502520,0.02458194,88023.0,88012.0,0.01136208]
[1767273502707,0.01066983,88022.0,88012.0,0.01136208]
[1767273503058,0.01066983,88021.0,88012.0,0.01136208]
[1767273503256,0.02458194,88023.0,88013.0,0.01136195]
[1767273503458,0.0106702,88022.0,88013.0,0.01136195]
[1767273503620,0.0106702,88021.0,88013.0,0.01136195]
[1767273503814,0.04701722,88024.0,88013.0,0.01136195]
[1767273503815,0.04701722,88024.0,88015.0,0.01136169]
[1767273504024,0.03525432,88023.0,88015.0,0.01136169]
[1767273504222,0.01067018,88022.0,88015.0,0.01136169]
[1767273504428,0.04701722,88024.0,88015.0,0.01136169]
[1767273504659,0.0352543,88023.0,88015.0,0.01136169]
[1767273504859,0.01067017,88022.0,88015.0,0.01136169]
[1767273505065,0.04701722,88024.0,88014.0,0.01136182]
[1767273505258,0.03525431,88023.0,88014.0,0.01136182]
[1767273505407,0.01067018,88022.0,88014.0,0.01136182]
[1767273505614,0.04701722,88024.0,88013.0,0.01136195]
[1767273505809,0.03525431,88023.0,88013.0,0.01136195]
[1767273506055,0.01067018,88022.0,88014.0,0.01136182]
[1767273506266,0.04701722,88024.0,88014.0,0.01136182]
[1767273506565,0.03525435,88023.0,88014.0,0.01136182]
[1767273506768,0.0106702,88022.0,88014.0,0.01136182]
[1767273506950,0.04701722,88024.0,88014.0,0.01136182]
[1767273507149,0.03525435,88023.0,88014.0,0.01136182]
[1767273507335,0.0106702,88022.0,88014.0,0.01136182]
[1767273507531,0.04701722,88024.0,88014.0,0.01136182]
[1767273507735,0.03525442,88023.0,88014.0,0.01136182]
[1767273507948,0.01067023,88022.0,88014.0,0.01136182]
[1767273508151,0.04701722,88024.0,88014.0,0.01136182]
[1767273508358,0.03525451,88023.0,88014.0,0.01136182]
[1767273508559,0.01067026,88022.0,88014.0,0.01136182]
[1767273508761,0.04701722,88024.0,88014.0,0.01136182]
[1767273508961,0.03525451,88023.0,88014.0,0.01136182]
[1767273509198,0.01067026,88022.0,88014.0,0.01136182]
[1767273509444,0.04701722,88024.0,88015.0,0.01136169]
[1767273509644,0.03525464,88023.0,88014.0,0.01136182]
[1767273509856,0.01067031,88022.0,88014.0,0.01136182]
[1767273510084,0.04701722,88024.0,88014.0,0.01136182]
[1767273510256,0.03525464,88023.0,88014.0,0.01136182]
[1767273510460,0.01067031,88022.0,88014.0,0.01136182]
[1767273510729,0.04701722,88024.0,88015.0,0.01136169]
[1767273511023,0.03525464,88023.0,88014.0,0.01136182]
[1767273511242,0.01067031,88022.0,88014.0,0.01136182]
[1767273511399,0.04701722,88024.0,88013.0,0.01136195]
[1767273511593,0.03525465,88023.0,88013.0,0.01136195]
[1767273511796,0.01067032,88022.0,88013.0,0.01136195]
[1767273511995,0.04701722,88024.0,88015.0,0.01136169]
[1767273512206,0.03525452,88023.0,88015.0,0.01136169]
[1767273512404,0.01067028,88022.0,88016.0,0.01136157]
[1767273512600,0.04701722,88024.0,88015.0,0.01136169]
[1767273512822,0.03525434,88023.0,88013.0,0.01136195]
[1767273513028,0.03525434,88022.0,88012.0,0.01136208]
[1767273513230,0.01067023,88021.0,88012.0,0.01136208]
[1767273513403,0.04701722,88024.0,88011.0,0.01136221]
[1767273513746,0.03525439,88023.0,88011.0,0.01136221]
[1767273514045,0.03525439,88022.0,88010.0,0.43242819]
[1767273514279,0.01067024,88021.0,88010.0,0.43242819]
[1767273514456,0.04701722,88024.0,88010.0,0.43242819]
[1767273514622,0.035254,88023.0,88010.0,0.42106585]
[1767273514962,0.01067012,88022.0,88010.0,0.42106585]
[1767273515192,0.01067012,88021.0,88010.0,0.42106585]
[1767273515397,0.02458388,88023.0,88010.0,0.42106585]
[1767273515605,0.01067001,88022.0,88010.0,0.43242819]
[1767273515811,0.02458388,88023.0,88010.0,0.42106585]
[1767273515812,0.01067001,88021.0,88010.0,0.42106585]
[1767273515962,0.04732135,88019.0,88009.0,0.03411244]
[1767273516172,0.04687327,88019.0,88008.0,0.0001467]
[1767273516590,0.04687327,88019.0,88009.0,0.40970585]
[1767273516782,0.04687327,88019.0,88009.0,0.42106832]
[1767273516969,0.04687327,88019.0,88009.0,0.40970585]
[1767273517806,0.04687327,88019.0,88011.0,0.01136221]
[1767273517955,0.04687327,88019.0,88010.0,0.01136234]
[1767273518405,0.04687327,88019.0,88011.0,0.01136221]
[1767273518767,0.04687327,88019.0,88008.0,0.0001467]
[1767273519380,0.02272015,88027.0,88008.0,0.0001467]
[1767273519381,0.04732135,88017.0,88008.0,0.0001467]
[1767273520604,0.02272299,88016.0,88008.0,0.0001467]
[1767273525122,0.04732135,88017.0,88008.0,0.0001467]
[1767273536990,0.04732135,88017.0,88008.0,0.0115093]
[1767273537515,0.04732135,88017.0,88008.0,0.0001467]
[1767273538021,0.04732135,88017.0,88008.0,0.0115093]
[1767273540449,0.04732135,88017.0,88009.0,0.01136247]
[1767273540810,0.04677235,88017.0,88009.0,0.01136247]
[1767273542258,0.15904235,88020.0,88010.0,0.01136234]
[1767273542460,0.01066511,88019.0,88009.0,0.01136247]
[1767273542622,0.01066511,88018.0,88010.0,0.01136234]
[1767273542818,0.5687482,88020.0,88010.0,0.01136234]
[1767273543162,0.01066511,88019.0,88010.0,0.01136234]
[1767273543374,0.01066511,88018.0,88010.0,0.01136234]
[1767273543566,0.5687482,88020.0,88009.0,0.01136247]
[1767273543711,0.01066549,88019.0,88009.0,0.01136247]
[1767273543907,0.01066549,88018.0,88009.0,0.01136247]
[1767273544104,0.02457423,88019.0,88012.0,0.01136208]
[1767273544313,0.01066585,88018.0,88012.0,0.01136208]
[1767273544515,0.15904235,88020.0,88011.0,0.01136221]
[1767273544717,0.01066594,88019.0,88011.0,0.01136221]
[1767273544938,0.01066594,88018.0,88011.0,0.01136221]
[1767273545149,0.02457443,88019.0,88011.0,0.01136221]
[1767273545358,0.01066639,88018.0,88011.0,0.01136221]
[1767273545559,0.02457443,88019.0,88011.0,0.01136221]
[1767273545766,0.01066647,88018.0,88011.0,0.01136221]
[1767273545998,0.02457443,88019.0,88011.0,0.01136221]
[1767273546222,0.01066647,88018.0,88011.0,0.01136221]
[1767273546428,0.02457443,88019.0,88011.0,0.01136221]
[1767273546579,0.01066709,88018.0,88011.0,0.01136221]
[1767273546780,0.02457443,88019.0,88011.0,0.01136221]
[1767273547036,0.01066709,88018.0,88011.0,0.01136221]
[1767273547317,0.02457443,88019.0,88011.0,0.01136221]
[1767273547518,0.01066785,88018.0,88011.0,0.01136221]
[1767273547719,0.02457443,88019.0,88011.0,0.01136221]
[1767273547884,0.01066785,88018.0,88011.0,0.01136221]
[1767273548087,0.01066888,88017.0,88011.0,0.01136221]
[1767273548308,0.02457443,88019.0,88011.0,0.01136221]
[1767273548503,0.01066893,88018.0,88010.0,0.01136234]
[1767273548710,0.01066893,88017.0,88011.0,0.01136221]
[1767273548875,0.02457443,88019.0,88011.0,0.01136221]
[1767273549077,0.01066893,88018.0,88011.0,0.01136221]
[1767273549280,0.01066893,88017.0,88011.0,0.01136221]
[1767273549544,0.02457443,88019.0,88011.0,0.01136221]
[1767273549744,0.01067132,88018.0,88011.0,0.01136221]
[1767273549972,0.01067132,88017.0,88011.0,0.01136221]
[1767273550170,0.15904235,88020.0,88011.0,0.01136221]
[1767273550325,0.08054032,88019.0,88008.0,0.0115093]
[1767273550512,0.03525811,88018.0,88010.0,0.01136234]
[1767273550846,0.01067132,88017.0,88010.0,0.01136234]
[1767273551057,0.04528221,88019.0,88010.0,0.01136234]
[1767273551199,0.03525809,88018.0,88010.0,0.01136234]
[1767273551400,0.0106713,88017.0,88009.0,0.01136247]
[1767273551598,0.04528221,88019.0,88010.0,0.01136234]
[1767273551916,0.01067115,88018.0,88010.0,0.01136234]
[1767273552136,0.01067115,88017.0,88009.0,0.01136247]
[1767273552333,0.04528221,88019.0,88010.0,0.01136234]
[1767273552540,0.01067071,88018.0,88011.0,0.01136221]
[1767273552742,0.04528221,88019.0,88011.0,0.01136221]
[1767273553039,0.01067071,88018.0,88011.0,0.01136221]
[1767273553235,0.04528221,88019.0,88011.0,0.01136221]
[1767273553494,0.0106707,88018.0,88011.0,0.01136221]
[1767273553655,0.04528221,88019.0,88011.0,0.01136221]
[1767273553960,0.01067045,88018.0,88011.0,0.01136221]
[1767273554158,0.04528221,88019.0,88011.0,0.01136221]
[1767273554382,0.01067044,88018.0,88011.0,0.01136221]
[1767273554680,0.04528221,88019.0,88010.0,0.01136234]
[1767273554886,0.01067026,88018.0,88011.0,0.01136221]
[1767273555037,0.04528221,88019.0,88011.0,0.01136221]
[1767273555236,0.01067024,88018.0,88011.0,0.01136221]
[1767273555459,0.04528221,88019.0,88010.0,0.01136234]
[1767273555660,0.01067011,88018.0,88010.0,0.01136234]
[1767273555854,0.04528221,88019.0,88010.0,0.01136234]
[1767273556057,0.01067011,88018.0,88010.0,0.01136234]
[1767273556241,0.04528221,88019.0,88011.0,0.01136221]
[1767273556461,0.01067009,88018.0,88011.0,0.01136221]
[1767273556757,0.04528221,88019.0,88011.0,0.01136221]
[1767273556955,0.01066999,88018.0,88011.0,0.01136221]
[1767273557160,0.04528221,88019.0,88011.0,0.01136221]
[1767273557514,0.01066997,88018.0,88011.0,0.01136221]
[1767273557695,0.04528221,88019.0,88011.0,0.01136221]
[1767273557905,0.01066989,88018.0,88011.0,0.01136221]
[1767273558126,0.04528221,88019.0,88011.0,0.01136221]
[1767273558411,0.01066987,88018.0,88011.0,0.01136221]
[1767273558614,0.04528221,88019.0,88011.0,0.01136221]
[1767273558772,0.0106698,88018.0,88011.0,0.01136221]
[1767273558971,0.04528221,88019.0,88011.0,0.01136221]
[1767273559193,0.0106698,88018.0,88011.0,0.01136221]
[1767273559389,0.04528221,88019.0,88011.0,0.01136221]
[1767273559590,0.01066973,88018.0,88011.0,0.01136221]
[1767273559796,0.04528221,88019.0,88011.0,0.01136221]
[1767273560094,0.01066973,88018.0,88011.0,0.01136221]
[1767273560296,0.04528221,88019.0,88011.0,0.01136221]
[1767273560455,0.01066968,88018.0,88011.0,0.01136221]
[1767273560661,0.04528221,88019.0,88011.0,0.01136221]
[1767273560861,0.01066968,88018.0,88011.0,0.01136221]
[1767273561102,0.04528221,88019.0,88011.0,0.01136221]
[1767273561304,0.01066967,88018.0,88011.0,0.01136221]
[1767273561623,0.02272286,88020.0,88012.0,0.01136208]
[1767273561784,0.01066954,88019.0,88012.0,0.01136208]
[1767273561984,0.01066954,88018.0,88012.0,0.01136208]
[1767273562186,0.02272286,88020.0,88012.0,0.01136208]
[1767273562385,0.01066954,88019.0,88013.0,0.01136195]
[1767273562724,0.02272286,88020.0,88014.0,0.01136182]
[1767273562919,0.01066921,88019.0,88014.0,0.01136182]
[1767273563072,0.02272286,88020.0,88015.0,0.01136169]
[1767273563273,0.0106692,88019.0,88014.0,0.01136182]
[1767273563515,0.02272286,88020.0,88014.0,0.01136182]
[1767273563721,0.01066894,88019.0,88015.0,0.01136169]
[1767273563938,0.02272286,88020.0,88014.0,0.01136182]
[1767273564131,0.01066894,88019.0,88015.0,0.01136169]
[1767273564346,0.02272286,88020.0,88015.0,0.01136169]
[1767273564507,0.01066871,88019.0,88014.0,0.01136182]
[1767273564711,0.000549,88015.0,88014.0,0.01136182]
[1767273564934,0.02272286,88020.0,88014.0,0.01136182]
[1767273565112,0.01066873,88019.0,88014.0,0.01136182]
[1767273565316,0.02272286,88020.0,88014.0,0.01136182]
[1767273565539,0.01066859,88019.0,88014.0,0.01136182]
[1767273565772,0.02272286,88020.0,88014.0,0.01136182]
[1767273565922,0.01066859,88019.0,88014.0,0.01136182]
[1767273566132,0.02272286,88020.0,88017.0,0.01136144]
[1767273566442,0.01136,88024.0,88018.0,0.01136131]
[1767273566650,0.04547302,88026.0,88023.0,0.01136066]
[1767273566908,0.02457849,88025.0,88022.0,0.01136079]
[1767273567037,0.02457849,88025.0,88021.0,0.01136092]
[1767273567235,0.03593941,88025.0,88020.0,0.01136105]
[1767273567570,0.02457849,88024.0,88021.0,0.01136092]
[1767273567736,0.02457849,88024.0,88020.0,0.01136105]
[1767273567939,0.02457849,88024.0,88021.0,0.01136092]
[1767273568139,0.01136092,88025.0,88021.0,0.01136092]
[1767273568340,0.01136092,88025.0,88022.0,0.01136079]
[1767273570118,0.01136092,88025.0,88021.0,0.01136092]
[1767273571303,0.01136092,88025.0,88022.0,0.01136079]
[1767273572220,0.01136092,88025.0,88021.0,0.01136092]
[1767273573248,0.01136092,88025.0,88020.0,0.01136105]
[1767273573403,0.01136092,88025.0,88021.0,0.01136092]
[1767273574637,0.01136092,88025.0,88020.0,0.01136105]
[1767273575067,0.01136092,88025.0,88021.0,0.01136092]
[1767273575335,0.01136092,88025.0,88020.0,0.01136105]
[1767273577447,0.05669855,88025.0,88020.0,0.01136105]
[1767273577662,0.05669855,88025.0,88019.0,0.01136118]
[1767273578861,0.05669855,88025.0,88018.0,0.05680602]
[1767273579076,0.00010093,88018.0,88014.0,0.01136]
[1767273579297,0.13631949,88021.0,88014.0,0.01136]
[1767273579298,0.18165712,88021.0,88014.0,0.01136]
[1767273582344,0.01066368,88020.0,88014.0,0.01136]
[1767273582676,0.18165712,88021.0,88014.0,0.01136]
[1767273582877,0.01066368,88020.0,88014.0,0.01136]
[1767273583088,0.18165712,88021.0,88014.0,0.01136]
[1767273583308,0.01066368,88020.0,88014.0,0.01136]
[1767273583480,0.18165712,88021.0,88014.0,0.01136]
[1767273589257,0.18165712,88021.0,88014.0,0.02272182]
[1767273590086,0.13631949,88021.0,88017.0,0.01136144]
[1767273590300,0.13631949,88021.0,88016.0,0.01136157]
[1767273590495,0.13631949,88021.0,88015.0,0.01136169]
[1767273590709,0.13631949,88021.0,88016.0,0.01136157]
[1767273591079,0.13631949,88021.0,88017.0,0.01136144]
[1767273591299,0.13587149,88021.0,88017.0,0.01136144]
[1767273593102,0.13587149,88021.0,88016.0,0.01136157]
[1767273593309,0.13587149,88021.0,88017.0,0.01136144]
[1767273593604,0.13587149,88021.0,88019.0,0.05680591]
[1767273593806,0.04902403,88024.0,88021.0,0.01136092]
[1767273595170,0.01136,88026.0,88023.0,0.01136066]
[1767273595335,0.01136,88026.0,88024.0,0.00055]
[1767273595336,0.01066524,88025.0,88024.0,0.00055]
[1767273595545,0.01066524,88025.0,88023.0,0.01124485]
[1767273595751,0.01036192,88026.0,88023.0,0.01124485]
[1767273595929,0.01066519,88025.0,88023.0,0.01124485]
[1767273596127,0.01036192,88026.0,88023.0,0.01124485]
[1767273596341,0.01066518,88025.0,88023.0,0.01124485]
[1767273596543,0.01036192,88026.0,88023.0,0.01124485]
[1767273596739,0.01066497,88025.0,88022.0,0.01136079]
[1767273596945,0.03411302,88028.0,88024.0,0.01136053]
[1767273597148,0.03523702,88027.0,88024.0,0.01136053]
[1767273597348,0.03523702,88026.0,88023.0,0.01136066]
[1767273597545,0.01066499,88025.0,88023.0,0.01136066]
[1767273597750,0.07359583,88029.0,88024.0,0.01136053]